[Event "Titled Tuesday Blitz October 18 Late 2022"]
[White "P., Komal Kishore"]
[Black "Mohammadian, Mohammad"]
[WhiteFideId "5016703"]
[BlackFideId "12566055"]
[WhiteElo "2093"]
[BlackElo "1489"]
[Result "1-0"]
[Round "08"]
[TimeControl "180+1"]
[Date "2022.10.19"]
[WhiteClock "0:01:30"]
[BlackClock "0:01:04"]

1. e4 {[%clk 0:03:00]}  e5 {[%clk 0:02:59]} 2. Nf3 {[%clk 0:03:00]}  Nc6 {[%clk 0:02:58]} 3. Bb5 {[%clk 0:03:00]}  a6 {[%clk 0:02:58]} 4. Ba4 {[%clk 0:03:00]}  Nf6 {[%clk 0:02:57]} 5. d3 {[%clk 0:03:00]}  b5 {[%clk 0:02:55]} 6. Bb3 {[%clk 0:03:00]}  d6 {[%clk 0:02:55]} 7. O-O {[%clk 0:03:00]}  Be7 {[%clk 0:02:55]} 8. h3 {[%clk 0:03:00]}  O-O {[%clk 0:02:55]} 9. c3 {[%clk 0:03:00]}  h6 {[%clk 0:02:54]} 10. Re1 {[%clk 0:03:00]}  Re8 {[%clk 0:02:53]} 11. d4 {[%clk 0:03:00]}  exd4 {[%clk 0:02:51]} 12. cxd4 {[%clk 0:03:01]}  Bf8 {[%clk 0:02:50]} 13. Nbd2 {[%clk 0:02:45]}  Bb7 {[%clk 0:02:47]} 14. a3 {[%clk 0:02:34]}  Na5 {[%clk 0:02:44]} 15. Bc2 {[%clk 0:02:34]}  Nc4 {[%clk 0:02:42]} 16. Nxc4 {[%clk 0:02:33]}  bxc4 {[%clk 0:02:40]} 17. e5 {[%clk 0:02:25]}  dxe5 {[%clk 0:02:39]} 18. dxe5 {[%clk 0:02:10]}  Qxd1 {[%clk 0:02:36]} 19. Rxd1 {[%clk 0:02:03]}  Ne4 {[%clk 0:02:28]} 20. Rd7 {[%clk 0:01:57]}  Bc5 {[%clk 0:02:21]} 21. Rxc7 {[%clk 0:01:57]}  Bxf2+ {[%clk 0:02:17]} 22. Kf1 {[%clk 0:01:57]}  Rab8 {[%clk 0:01:42]} 23. Rxb7 {[%clk 0:01:50]}  Rxb7 {[%clk 0:01:31]} 24. Bxe4 {[%clk 0:01:50]}  Rc7 {[%clk 0:01:19]} 25. Kxf2 {[%clk 0:01:49]}  f6 {[%clk 0:01:16]} 26. e6 {[%clk 0:01:47]}  Kh8 {[%clk 0:01:14]} 27. Bf4 {[%clk 0:01:34]}  Rxe6 {[%clk 0:01:06]} 28. Bxc7 {[%clk 0:01:32]}  Rxe4 {[%clk 0:01:06]} 29. Re1 {[%clk 0:01:30]}  Rxe1 {[%clk 0:01:04]} 30. Kxe1 {[%clk 0:01:30]} 1-0


[Site "https://www.chess.com"]

[Event "Titled Tuesday Blitz October 18 Late 2022"]
[White "Pap, Gyula"]
[Black "Radovic, Janko"]
[WhiteFideId "725323"]
[BlackFideId "911518"]
[WhiteElo "2519"]
[BlackElo "2318"]
[Result "1-0"]
[Round "08"]
[TimeControl "180+1"]
[Date "2022.10.18"]
[WhiteClock "0:01:27"]
[BlackClock "0:00:10"]

1. g3 {[%clk 0:03:00]}  d5 {[%clk 0:02:59]} 2. Nf3 {[%clk 0:03:00]}  Nf6 {[%clk 0:03:00]} 3. Bg2 {[%clk 0:03:01]}  e6 {[%clk 0:02:59]} 4. O-O {[%clk 0:03:00]}  Be7 {[%clk 0:02:59]} 5. b3 {[%clk 0:03:01]}  O-O {[%clk 0:03:00]} 6. Bb2 {[%clk 0:03:01]}  c5 {[%clk 0:03:00]} 7. c4 {[%clk 0:03:02]}  Nc6 {[%clk 0:02:59]} 8. cxd5 {[%clk 0:03:01]}  exd5 {[%clk 0:02:59]} 9. d4 {[%clk 0:03:02]}  Bf5 {[%clk 0:02:48]} 10. Nc3 {[%clk 0:02:58]}  Ne4 {[%clk 0:02:36]} 11. dxc5 {[%clk 0:02:55]}  Bxc5 {[%clk 0:02:23]} 12. Nxd5 {[%clk 0:02:52]}  Re8 {[%clk 0:01:52]} 13. e3 {[%clk 0:02:49]}  Bg4 {[%clk 0:01:49]} 14. h3 {[%clk 0:02:46]}  Bh5 {[%clk 0:01:47]} 15. Nf4 {[%clk 0:02:46]}  Bg6 {[%clk 0:01:35]} 16. Nxg6 {[%clk 0:02:46]}  hxg6 {[%clk 0:01:34]} 17. Qxd8 {[%clk 0:02:46]}  Raxd8 {[%clk 0:01:34]} 18. Rfd1 {[%clk 0:02:46]}  Nb4 {[%clk 0:01:31]} 19. Ne5 {[%clk 0:02:39]}  Nd6 {[%clk 0:01:14]} 20. a3 {[%clk 0:02:37]}  Nc2 {[%clk 0:00:58]} 21. Rac1 {[%clk 0:02:36]}  Nxe3 {[%clk 0:00:56]} 22. fxe3 {[%clk 0:02:32]}  Bxe3+ {[%clk 0:00:56]} 23. Kh2 {[%clk 0:02:32]}  Bxc1 {[%clk 0:00:57]} 24. Rxc1 {[%clk 0:02:32]}  Nf5 {[%clk 0:00:53]} 25. Bc3 {[%clk 0:01:59]}  Rc8 {[%clk 0:00:44]} 26. Bxb7 {[%clk 0:01:54]}  Rc7 {[%clk 0:00:43]} 27. Bc6 {[%clk 0:01:50]}  Re6 {[%clk 0:00:42]} 28. b4 {[%clk 0:01:38]}  Rexc6 {[%clk 0:00:39]} 29. Nxc6 {[%clk 0:01:39]}  Rxc6 {[%clk 0:00:40]} 30. Bb2 {[%clk 0:01:40]}  Re6 {[%clk 0:00:39]} 31. Rc2 {[%clk 0:01:38]}  Ne3 {[%clk 0:00:39]} 32. Rc8+ {[%clk 0:01:35]}  Kh7 {[%clk 0:00:39]} 33. Bd4 {[%clk 0:01:36]}  Nf5 {[%clk 0:00:36]} 34. Bxa7 {[%clk 0:01:35]}  Re2+ {[%clk 0:00:36]} 35. Kg1 {[%clk 0:01:35]}  Nxg3 {[%clk 0:00:37]} 36. b5 {[%clk 0:01:34]}  f5 {[%clk 0:00:32]} 37. b6 {[%clk 0:01:30]}  Rb2 {[%clk 0:00:32]} 38. Rc7 {[%clk 0:01:30]}  f4 {[%clk 0:00:29]} 39. b7 {[%clk 0:01:30]}  f3 {[%clk 0:00:29]} 40. Bf2 {[%clk 0:01:30]}  Rb1+ {[%clk 0:00:26]} 41. Be1 {[%clk 0:01:28]}  Rxe1+ {[%clk 0:00:20]} 42. Kf2 {[%clk 0:01:28]}  Rb1 {[%clk 0:00:12]} 43. Kxg3 {[%clk 0:01:27]}  Rb3 {[%clk 0:00:11]} 44. a4 {[%clk 0:01:27]}  g5 {[%clk 0:00:10]} 45. a5 {[%clk 0:01:27]} 1-0


[Site "https://www.chess.com"]

[Event "Titled Tuesday Blitz October 18 Late 2022"]
[White "Poliakova, Varvara"]
[Black "Czernek, Tymon"]
[WhiteFideId "13518313"]
[BlackFideId "1199510"]
[WhiteElo "1938"]
[BlackElo "2240"]
[Result "0-1"]
[Round "08"]
[TimeControl "180+1"]
[Date "2022.10.18"]
[WhiteClock "0:00:11"]
[BlackClock "0:00:12"]

1. e4 {[%clk 0:03:00]}  c5 {[%clk 0:03:00]} 2. Nf3 {[%clk 0:02:59]}  d6 {[%clk 0:03:00]} 3. d4 {[%clk 0:03:00]}  cxd4 {[%clk 0:03:01]} 4. Nxd4 {[%clk 0:03:01]}  Nf6 {[%clk 0:03:00]} 5. Nc3 {[%clk 0:03:01]}  a6 {[%clk 0:03:00]} 6. h3 {[%clk 0:03:00]}  e5 {[%clk 0:03:00]} 7. Nde2 {[%clk 0:03:01]}  Be7 {[%clk 0:03:01]} 8. g4 {[%clk 0:03:00]}  b5 {[%clk 0:03:00]} 9. a3 {[%clk 0:03:00]}  Bb7 {[%clk 0:03:00]} 10. Bg2 {[%clk 0:03:00]}  O-O {[%clk 0:02:58]} 11. Ng3 {[%clk 0:03:01]}  Nbd7 {[%clk 0:02:48]} 12. Be3 {[%clk 0:02:56]}  Rc8 {[%clk 0:02:42]} 13. Nf5 {[%clk 0:02:53]}  Nc5 {[%clk 0:02:33]} 14. Nd5 {[%clk 0:02:46]}  Nxd5 {[%clk 0:02:18]} 15. exd5 {[%clk 0:02:46]}  Re8 {[%clk 0:02:09]} 16. O-O {[%clk 0:02:38]}  Bf8 {[%clk 0:02:02]} 17. Qd2 {[%clk 0:02:26]}  Qd7 {[%clk 0:01:44]} 18. Rae1 {[%clk 0:02:18]}  g6 {[%clk 0:01:37]} 19. Ng3 {[%clk 0:02:17]}  Bg7 {[%clk 0:01:33]} 20. c3 {[%clk 0:02:03]}  f5 {[%clk 0:01:28]} 21. gxf5 {[%clk 0:02:00]}  gxf5 {[%clk 0:01:29]} 22. f4 {[%clk 0:02:01]}  e4 {[%clk 0:01:27]} 23. Nh5 {[%clk 0:01:41]}  Nd3 {[%clk 0:01:14]} 24. Re2 {[%clk 0:01:30]}  Bxd5 {[%clk 0:01:06]} 25. Nxg7 {[%clk 0:01:30]}  Qxg7 {[%clk 0:01:07]} 26. Kh2 {[%clk 0:01:29]}  Kf7 {[%clk 0:01:06]} 27. Rg1 {[%clk 0:01:23]}  Qh6 {[%clk 0:01:06]} 28. Bh1 {[%clk 0:01:15]}  Rg8 {[%clk 0:01:06]} 29. Reg2 {[%clk 0:01:16]}  Rg6 {[%clk 0:00:46]} 30. Rg5 {[%clk 0:01:14]}  Be6 {[%clk 0:00:40]} 31. Bg2 {[%clk 0:00:59]}  Rcg8 {[%clk 0:00:38]} 32. Bf1 {[%clk 0:00:59]}  Rxg5 {[%clk 0:00:29]} 33. fxg5 {[%clk 0:00:59]}  Qh4 {[%clk 0:00:27]} 34. Bxd3 {[%clk 0:00:54]}  f4 {[%clk 0:00:27]} 35. Bf1 {[%clk 0:00:45]}  fxe3 {[%clk 0:00:22]} 36. Qxe3 {[%clk 0:00:46]}  Ke7 {[%clk 0:00:20]} 37. Qa7+ {[%clk 0:00:42]}  Bd7 {[%clk 0:00:20]} 38. Qe3 {[%clk 0:00:40]}  Rf8 {[%clk 0:00:19]} 39. Bg2 {[%clk 0:00:37]}  Rf3 {[%clk 0:00:19]} 40. Re1 {[%clk 0:00:12]}  Rxe3 {[%clk 0:00:17]} 41. Rxe3 {[%clk 0:00:13]}  Qf4+ {[%clk 0:00:17]} 42. Rg3 {[%clk 0:00:13]}  e3 {[%clk 0:00:17]} 43. Bf3 {[%clk 0:00:11]}  Bc6 {[%clk 0:00:13]} 44. Kg2 {[%clk 0:00:11]}  e2 {[%clk 0:00:12]} 0-1


[Site "https://www.chess.com"]

[Event "Titled Tuesday Blitz October 18 Late 2022"]
[White "Pranav, V"]
[Black "Gorodetzky, David"]
[WhiteFideId "25060783"]
[BlackFideId "2813416"]
[WhiteElo "2430"]
[BlackElo "2487"]
[Result "0-1"]
[Round "08"]
[TimeControl "180+1"]
[Date "2022.10.18"]
[WhiteClock "0:00:04"]
[BlackClock "0:00:03"]

1. e4 {[%clk 0:03:00]}  c6 {[%clk 0:02:58]} 2. d4 {[%clk 0:02:59]}  d5 {[%clk 0:02:59]} 3. e5 {[%clk 0:03:00]}  c5 {[%clk 0:02:58]} 4. dxc5 {[%clk 0:03:00]}  e6 {[%clk 0:02:58]} 5. Be3 {[%clk 0:02:59]}  Nd7 {[%clk 0:02:55]} 6. Bb5 {[%clk 0:02:58]}  Ne7 {[%clk 0:02:54]} 7. Nf3 {[%clk 0:02:56]}  Nc6 {[%clk 0:02:52]} 8. Bxc6 {[%clk 0:02:54]}  bxc6 {[%clk 0:02:52]} 9. b4 {[%clk 0:02:54]}  a5 {[%clk 0:02:52]} 10. c3 {[%clk 0:02:54]}  Ba6 {[%clk 0:02:52]} 11. a3 {[%clk 0:02:51]}  Qc7 {[%clk 0:02:44]} 12. Nbd2 {[%clk 0:02:49]}  Nxe5 {[%clk 0:02:37]} 13. Nxe5 {[%clk 0:02:39]}  Qxe5 {[%clk 0:02:38]} 14. Qc2 {[%clk 0:02:34]}  Be7 {[%clk 0:02:20]} 15. Nf3 {[%clk 0:02:32]}  Qh5 {[%clk 0:02:20]} 16. Nd4 {[%clk 0:02:29]}  Rc8 {[%clk 0:01:36]} 17. h3 {[%clk 0:02:20]}  O-O {[%clk 0:01:34]} 18. Bf4 {[%clk 0:02:10]}  Rfe8 {[%clk 0:01:20]} 19. g4 {[%clk 0:01:54]}  Qg6 {[%clk 0:01:19]} 20. Qxg6 {[%clk 0:01:53]}  hxg6 {[%clk 0:01:20]} 21. Nb3 {[%clk 0:01:53]}  a4 {[%clk 0:01:18]} 22. Nd2 {[%clk 0:01:45]}  e5 {[%clk 0:01:16]} 23. Bg3 {[%clk 0:01:44]}  f5 {[%clk 0:01:12]} 24. O-O-O {[%clk 0:01:25]}  f4 {[%clk 0:01:11]} 25. Bh2 {[%clk 0:01:26]}  g5 {[%clk 0:01:11]} 26. c4 {[%clk 0:01:11]}  Bf6 {[%clk 0:00:54]} 27. cxd5 {[%clk 0:00:47]}  cxd5 {[%clk 0:00:55]} 28. Nb1 {[%clk 0:00:48]}  d4 {[%clk 0:00:55]} 29. f3 {[%clk 0:00:47]}  Be2 {[%clk 0:00:53]} 30. Nd2 {[%clk 0:00:46]}  Kf7 {[%clk 0:00:35]} 31. Rde1 {[%clk 0:00:38]}  Bd3 {[%clk 0:00:32]} 32. Ne4 {[%clk 0:00:34]}  Bxe4 {[%clk 0:00:32]} 33. Rxe4 {[%clk 0:00:35]}  Ke6 {[%clk 0:00:32]} 34. h4 {[%clk 0:00:28]}  Kd5 {[%clk 0:00:32]} 35. h5 {[%clk 0:00:25]}  Rh8 {[%clk 0:00:30]} 36. Bg1 {[%clk 0:00:23]}  g6 {[%clk 0:00:28]} 37. h6 {[%clk 0:00:23]}  Rc7 {[%clk 0:00:28]} 38. Kd2 {[%clk 0:00:24]}  Rch7 {[%clk 0:00:26]} 39. Re2 {[%clk 0:00:24]}  Rxh6 {[%clk 0:00:21]} 40. Rxh6 {[%clk 0:00:25]}  Rxh6 {[%clk 0:00:21]} 41. Rh2 {[%clk 0:00:26]}  Rxh2+ {[%clk 0:00:20]} 42. Bxh2 {[%clk 0:00:27]}  Kc4 {[%clk 0:00:20]} 43. Bg1 {[%clk 0:00:27]}  Bd8 {[%clk 0:00:19]} 44. Bf2 {[%clk 0:00:27]}  Be7 {[%clk 0:00:19]} 45. Kc2 {[%clk 0:00:27]}  Bd8 {[%clk 0:00:12]} 46. Kd2 {[%clk 0:00:26]}  Kb3 {[%clk 0:00:04]} 47. Be1 {[%clk 0:00:11]}  Kxa3 {[%clk 0:00:03]} 48. Kc2 {[%clk 0:00:11]}  d3+ {[%clk 0:00:03]} 49. Kc3 {[%clk 0:00:09]}  Ka2 {[%clk 0:00:03]} 50. b5 {[%clk 0:00:07]}  Ba5+ {[%clk 0:00:02]} 51. Kxd3 {[%clk 0:00:06]}  Bxe1 {[%clk 0:00:03]} 52. b6 {[%clk 0:00:07]}  Ba5 {[%clk 0:00:04]} 53. Kc4 {[%clk 0:00:06]}  a3 {[%clk 0:00:04]} 54. Kb5 {[%clk 0:00:06]}  Kb3 {[%clk 0:00:05]} 55. c6 {[%clk 0:00:04]}  a2 {[%clk 0:00:04]} 56. c7 {[%clk 0:00:05]}  a1=Q {[%clk 0:00:05]} 57. c8=Q {[%clk 0:00:05]}  Qa4+ {[%clk 0:00:04]} 58. Ka6 {[%clk 0:00:04]}  Bc3+ {[%clk 0:00:02]} 59. Kb7 {[%clk 0:00:04]}  Bd4 {[%clk 0:00:03]} 60. Qe6+ {[%clk 0:00:04]}  Qc4 {[%clk 0:00:03]} 61. Qxg6 {[%clk 0:00:04]}  Qd5+ {[%clk 0:00:03]} 0-1


[Site "https://www.chess.com"]

[Event "Titled Tuesday Blitz October 18 Late 2022"]
[White "Rangel, Daniel"]
[Black "Goryachkina, Aleksandra"]
[WhiteFideId "2124475"]
[BlackFideId "4147103"]
[WhiteElo "2225"]
[BlackElo "2484"]
[Result "1/2-1/2"]
[Round "08"]
[TimeControl "180+1"]
[Date "2022.10.18"]
[WhiteClock "0:00:12"]
[BlackClock "0:00:10"]

1. c4 {[%clk 0:03:00]}  Nf6 {[%clk 0:02:59]} 2. g3 {[%clk 0:03:00]}  e6 {[%clk 0:02:58]} 3. Bg2 {[%clk 0:03:01]}  d5 {[%clk 0:02:58]} 4. Nf3 {[%clk 0:02:59]}  dxc4 {[%clk 0:02:58]} 5. O-O {[%clk 0:02:59]}  c5 {[%clk 0:02:56]} 6. Na3 {[%clk 0:02:51]}  Be7 {[%clk 0:02:46]} 7. Nxc4 {[%clk 0:02:51]}  O-O {[%clk 0:02:46]} 8. d3 {[%clk 0:02:50]}  Nc6 {[%clk 0:02:39]} 9. b3 {[%clk 0:02:43]}  Bd7 {[%clk 0:02:37]} 10. Bb2 {[%clk 0:02:42]}  Rc8 {[%clk 0:02:37]} 11. d4 {[%clk 0:02:33]}  cxd4 {[%clk 0:02:35]} 12. Nxd4 {[%clk 0:02:34]}  a6 {[%clk 0:02:25]} 13. Rc1 {[%clk 0:02:16]}  Nd5 {[%clk 0:02:06]} 14. Nxc6 {[%clk 0:02:08]}  Bxc6 {[%clk 0:02:05]} 15. Ne5 {[%clk 0:01:54]}  Bb5 {[%clk 0:01:59]} 16. Bxd5 {[%clk 0:01:36]}  Qxd5 {[%clk 0:01:53]} 17. Qxd5 {[%clk 0:01:35]}  exd5 {[%clk 0:01:53]} 18. Nd3 {[%clk 0:01:32]}  Bg5 {[%clk 0:01:47]} 19. f4 {[%clk 0:01:26]}  Be7 {[%clk 0:01:46]} 20. Rxc8 {[%clk 0:01:17]}  Rxc8 {[%clk 0:01:45]} 21. Rc1 {[%clk 0:01:17]}  Rxc1+ {[%clk 0:01:39]} 22. Bxc1 {[%clk 0:01:16]}  f6 {[%clk 0:01:38]} 23. Be3 {[%clk 0:01:13]}  Kf7 {[%clk 0:01:38]} 24. Bd4 {[%clk 0:01:11]}  Ke6 {[%clk 0:01:35]} 25. Kf2 {[%clk 0:01:11]}  Kf5 {[%clk 0:01:27]} 26. Kf3 {[%clk 0:01:09]}  h5 {[%clk 0:01:16]} 27. h3 {[%clk 0:01:09]}  Ke6 {[%clk 0:01:02]} 28. g4 {[%clk 0:00:59]}  hxg4+ {[%clk 0:01:02]} 29. hxg4 {[%clk 0:01:00]}  Bxd3 {[%clk 0:01:01]} 30. exd3 {[%clk 0:00:59]}  g6 {[%clk 0:01:01]} 31. Ke3 {[%clk 0:00:55]}  Ba3 {[%clk 0:00:58]} 32. Kd2 {[%clk 0:00:50]}  f5 {[%clk 0:00:50]} 33. g5 {[%clk 0:00:47]}  Kd6 {[%clk 0:00:50]} 34. Kc3 {[%clk 0:00:40]}  Kc6 {[%clk 0:00:48]} 35. Be5 {[%clk 0:00:38]}  a5 {[%clk 0:00:28]} 36. d4 {[%clk 0:00:20]}  Kb5 {[%clk 0:00:24]} 37. Bb8 {[%clk 0:00:19]}  a4 {[%clk 0:00:20]} 38. Be5 {[%clk 0:00:17]}  Bb4+ {[%clk 0:00:19]} 39. Kc2 {[%clk 0:00:17]}  Be7 {[%clk 0:00:14]} 40. Kc3 {[%clk 0:00:14]}  Bb4+ {[%clk 0:00:14]} 41. Kc2 {[%clk 0:00:14]}  Be1 {[%clk 0:00:14]} 42. Bd6 {[%clk 0:00:12]}  Bf2 {[%clk 0:00:13]} 43. Kc3 {[%clk 0:00:12]}  Be1+ {[%clk 0:00:10]} 44. Kc2 {[%clk 0:00:12]} 1/2-1/2


[Site "https://www.chess.com"]

[Event "Titled Tuesday Blitz October 18 Late 2022"]
[White "Roque Sola, Jose Luis"]
[Black "Drost, Peter"]
[WhiteFideId "5120390"]
[BlackFideId "1017896"]
[WhiteElo "2117"]
[BlackElo "2374"]
[Result "0-1"]
[Round "08"]
[TimeControl "180+1"]
[Date "2022.10.19"]
[WhiteClock "0:00:12"]
[BlackClock "0:00:12"]

1. c4 {[%clk 0:03:00]}  Nf6 {[%clk 0:02:59]} 2. Nc3 {[%clk 0:03:00]}  g6 {[%clk 0:02:59]} 3. Nf3 {[%clk 0:02:59]}  Bg7 {[%clk 0:02:59]} 4. g3 {[%clk 0:03:00]}  O-O {[%clk 0:02:58]} 5. Bg2 {[%clk 0:03:00]}  c6 {[%clk 0:02:58]} 6. O-O {[%clk 0:02:58]}  d5 {[%clk 0:02:57]} 7. d4 {[%clk 0:02:58]}  dxc4 {[%clk 0:02:56]} 8. e4 {[%clk 0:02:43]}  b5 {[%clk 0:02:54]} 9. Ne5 {[%clk 0:02:22]}  a5 {[%clk 0:02:42]} 10. Be3 {[%clk 0:01:43]}  Ba6 {[%clk 0:02:17]} 11. Qc2 {[%clk 0:01:20]}  Qc8 {[%clk 0:01:57]} 12. Rad1 {[%clk 0:01:13]}  Nbd7 {[%clk 0:01:52]} 13. Nxd7 {[%clk 0:01:07]}  Nxd7 {[%clk 0:01:43]} 14. e5 {[%clk 0:01:07]}  Nb6 {[%clk 0:01:33]} 15. Qe4 {[%clk 0:01:03]}  b4 {[%clk 0:01:24]} 16. Ne2 {[%clk 0:00:55]}  c3 {[%clk 0:01:10]} 17. Rfe1 {[%clk 0:00:31]}  Nd5 {[%clk 0:01:08]} 18. bxc3 {[%clk 0:00:31]}  Bxe2 {[%clk 0:01:07]} 19. Rxe2 {[%clk 0:00:30]}  Nxc3 {[%clk 0:01:07]} 20. Qd3 {[%clk 0:00:28]}  Rd8 {[%clk 0:01:03]} 21. Rc2 {[%clk 0:00:25]}  Nxd1 {[%clk 0:01:01]} 22. Qxd1 {[%clk 0:00:24]}  Bxe5 {[%clk 0:00:55]} 23. Rxc6 {[%clk 0:00:23]}  Qd7 {[%clk 0:00:53]} 24. Qc2 {[%clk 0:00:20]}  Bxd4 {[%clk 0:00:51]} 25. Rc7 {[%clk 0:00:20]}  Qd6 {[%clk 0:00:32]} 26. Bxd4 {[%clk 0:00:19]}  Qxd4 {[%clk 0:00:28]} 27. Bxa8 {[%clk 0:00:19]}  Rxa8 {[%clk 0:00:28]} 28. Rc8+ {[%clk 0:00:19]}  Rxc8 {[%clk 0:00:28]} 29. Qxc8+ {[%clk 0:00:20]}  Kg7 {[%clk 0:00:28]} 30. Qc7 {[%clk 0:00:18]}  Qd1+ {[%clk 0:00:24]} 31. Kg2 {[%clk 0:00:18]}  Qd5+ {[%clk 0:00:24]} 32. Kg1 {[%clk 0:00:17]}  Qxa2 {[%clk 0:00:21]} 33. Qxe7 {[%clk 0:00:17]}  Qa1+ {[%clk 0:00:16]} 34. Kg2 {[%clk 0:00:17]}  Qc3 {[%clk 0:00:13]} 35. Qd8 {[%clk 0:00:16]}  b3 {[%clk 0:00:13]} 36. Qb6 {[%clk 0:00:12]}  b2 {[%clk 0:00:12]} 37. Qb5 {[%clk 0:00:12]}  a4 {[%clk 0:00:12]} 0-1


[Site "https://www.chess.com"]

[Event "Titled Tuesday Blitz October 18 Late 2022"]
[White "Rose, Felix"]
[Black "Roque Sola, Gisela"]
[WhiteFideId "5105722"]
[BlackFideId "5120241"]
[WhiteElo "2039"]
[BlackElo "1961"]
[Result "1-0"]
[Round "08"]
[TimeControl "180+1"]
[Date "2022.10.19"]
[WhiteClock "0:00:10"]
[BlackClock "0:00:09"]

1. e4 {[%clk 0:02:58]}  c5 {[%clk 0:02:59]} 2. Nf3 {[%clk 0:02:59]}  Nc6 {[%clk 0:02:58]} 3. d4 {[%clk 0:02:58]}  cxd4 {[%clk 0:02:58]} 4. Nxd4 {[%clk 0:02:59]}  Nf6 {[%clk 0:02:56]} 5. Nc3 {[%clk 0:02:59]}  e5 {[%clk 0:02:55]} 6. Ndb5 {[%clk 0:02:59]}  d6 {[%clk 0:02:54]} 7. Bg5 {[%clk 0:02:59]}  a6 {[%clk 0:02:53]} 8. Na3 {[%clk 0:02:59]}  b5 {[%clk 0:02:53]} 9. Nd5 {[%clk 0:02:59]}  Be7 {[%clk 0:02:51]} 10. Bxf6 {[%clk 0:03:00]}  Bxf6 {[%clk 0:02:52]} 11. c3 {[%clk 0:03:01]}  Bg5 {[%clk 0:02:43]} 12. Nc2 {[%clk 0:03:01]}  Ne7 {[%clk 0:02:40]} 13. Ncb4 {[%clk 0:02:59]}  Be6 {[%clk 0:02:18]} 14. a4 {[%clk 0:02:31]}  bxa4 {[%clk 0:02:11]} 15. Qxa4+ {[%clk 0:02:27]}  Bd7 {[%clk 0:02:09]} 16. Qa5 {[%clk 0:02:01]}  Nxd5 {[%clk 0:01:58]} 17. Nxd5 {[%clk 0:01:55]}  O-O {[%clk 0:01:55]} 18. b4 {[%clk 0:00:58]}  Be6 {[%clk 0:00:41]} 19. Nc7 {[%clk 0:00:28]}  Rc8 {[%clk 0:00:34]} 20. Nxe6 {[%clk 0:00:17]}  fxe6 {[%clk 0:00:30]} 21. Qxd8 {[%clk 0:00:17]}  Bf6 {[%clk 0:00:25]} 22. Qxd6 {[%clk 0:00:10]}  Rxc3 {[%clk 0:00:20]} 23. Qxe6+ {[%clk 0:00:10]}  Kh8 {[%clk 0:00:20]} 24. Bxa6 {[%clk 0:00:10]}  Rd8 {[%clk 0:00:09]} 25. O-O {[%clk 0:00:10]} 1-0


[Site "https://www.chess.com"]

[Event "Titled Tuesday Blitz October 18 Late 2022"]
[White "Rosenberg, Evan S"]
[Black "Lima, Endson Dos Santos"]
[WhiteFideId "2019299"]
[BlackFideId "2133199"]
[WhiteElo "2355"]
[BlackElo "1953"]
[Result "1-0"]
[Round "08"]
[TimeControl "180+1"]
[Date "2022.10.19"]
[WhiteClock "0:00:58"]
[BlackClock "0:01:37"]

1. d4 {[%clk 0:03:00]}  Nf6 {[%clk 0:02:59]} 2. Nf3 {[%clk 0:03:00]}  g6 {[%clk 0:02:59]} 3. Nc3 {[%clk 0:03:00]}  d5 {[%clk 0:02:59]} 4. Bf4 {[%clk 0:02:58]}  Bg7 {[%clk 0:02:58]} 5. Nb5 {[%clk 0:02:59]}  Na6 {[%clk 0:02:58]} 6. e3 {[%clk 0:02:59]}  c6 {[%clk 0:02:57]} 7. Nc3 {[%clk 0:02:59]}  Nc7 {[%clk 0:02:56]} 8. h3 {[%clk 0:02:58]}  O-O {[%clk 0:02:56]} 9. Bd3 {[%clk 0:02:55]}  Bf5 {[%clk 0:02:53]} 10. Bxf5 {[%clk 0:02:51]}  gxf5 {[%clk 0:02:54]} 11. Ne5 {[%clk 0:02:37]}  Ne6 {[%clk 0:02:48]} 12. Qf3 {[%clk 0:02:26]}  Ne4 {[%clk 0:02:46]} 13. Nxe4 {[%clk 0:02:24]}  dxe4 {[%clk 0:02:40]} 14. Qg3 {[%clk 0:02:24]}  f6 {[%clk 0:02:31]} 15. Nc4 {[%clk 0:02:16]}  b5 {[%clk 0:02:20]} 16. Nd2 {[%clk 0:02:10]}  Nxf4 {[%clk 0:02:20]} 17. Qxf4 {[%clk 0:02:10]}  e5 {[%clk 0:02:20]} 18. Qxf5 {[%clk 0:02:07]}  exd4 {[%clk 0:02:19]} 19. O-O-O {[%clk 0:02:03]}  dxe3 {[%clk 0:02:14]} 20. Nxe4 {[%clk 0:02:01]}  Qb6 {[%clk 0:02:12]} 21. fxe3 {[%clk 0:01:53]}  Rae8 {[%clk 0:02:06]} 22. Rd4 {[%clk 0:01:34]}  Re5 {[%clk 0:02:02]} 23. Qd7 {[%clk 0:01:25]}  f5 {[%clk 0:01:57]} 24. Ng5 {[%clk 0:00:58]}  Rxe3 {[%clk 0:01:55]} 25. Rhd1 {[%clk 0:00:59]}  Bxd4 {[%clk 0:01:37]} 26. Qxh7# {[%clk 0:00:58]} 1-0


[Site "https://www.chess.com"]